{"text_format":"1","workbook":"xlsx","n_sheets":4,"sheets":["Slov","Hung","Bulg","Значения"],"not_rendered":{"charts":0,"images":0,"macros":0,"external_links":0,"defined_names":2,"comments":0,"pivot_tables":0},"unopened":[],"bounds":{"document_bytes":16777216,"sheet_cells":100000,"rows_first":2000,"rows_last":500,"rows_between":2000,"halvings":0,"cell_chars":16384,"cell_head_chars":4096},"cells_cut":0,"cells_raw":0,"read":"whole","date_system":"1900"}

{"sheet":"Slov","index":0,"n_rows":11,"n_cols":8,"rows_kept":11,"cut":false,"hidden":false,"merged":[]}
[]
[null,"Slov",null,null,null,null,"Slov",{"$f":"MIN(H7:H21)","v":"2019-01-02"}]
[]
[]
[]
[null,null,null,null,null,null,null,"Дата"]
[null,null,null,null,null,null,null,"2020-01-15"]
[null,null,null,null,null,null,null,"2020-02-01"]
[null,null,null,null,null,null,null,"2019-01-02"]
[null,null,null,null,null,null,null,"2020-01-03"]
[null,null,null,null,null,null,null,"2020-01-01"]

{"sheet":"Hung","index":1,"n_rows":10,"n_cols":8,"rows_kept":10,"cut":false,"hidden":false,"merged":[]}
[]
[null,"Dron",null,null,null,null,"Dron",{"$f":"MIN(H7:H21)","v":"2019-01-01"}]
[]
[]
[]
[null,null,null,null,null,null,null,"Дата"]
[null,null,null,null,null,null,null,"2019-05-02"]
[null,null,null,null,null,null,null,"2019-01-01"]
[null,null,null,null,null,null,null,"2020-02-02"]
[null,null,null,null,null,null,null,"2020-04-04"]

{"sheet":"Bulg","index":2,"n_rows":10,"n_cols":8,"rows_kept":10,"cut":false,"hidden":false,"merged":[]}
[]
[null,"Bulg",null,null,null,null,"Bulg",{"$f":"MIN(H7:H21)","v":"2018-01-01"}]
[]
[]
[]
[null,null,null,null,null,null,null,"Дата"]
[null,null,null,null,null,null,null,"2018-01-01"]
[null,null,null,null,null,null,null,"2018-02-05"]
[null,null,null,null,null,null,null,"2019-06-13"]
[null,null,null,null,null,null,null,"2020-05-05"]

{"sheet":"Значения","index":3,"n_rows":20,"n_cols":15,"rows_kept":20,"cut":false,"hidden":false,"merged":[]}
[]
[null,null,null,null,null,null,null,null,null,null,null,null,null,{"$f":"IF(O2=\"\",\"\",INDIRECT(O2&\"!H2\"))","v":"2019-01-02"},{"$f":"IF(ROW()>Листов,\"\",INDEX(Листы,ROW(A1)))","v":"Slov"}]
[null,null,"Минимальная дата",null,null,{"$f":"MIN(Slov:Значения!H2)","v":"2018-01-01"},"Клиент",{"$f":"VLOOKUP(F3,N2:O20,2,)","v":"Bulg"},null,null,null,null,null,{"$f":"IF(O3=\"\",\"\",INDIRECT(O3&\"!H2\"))","v":"2019-01-01"},{"$f":"IF(ROW()>Листов,\"\",INDEX(Листы,ROW(A2)))","v":"Hung"}]
[null,null,null,null,null,null,null,null,null,null,null,null,null,"2018-01-01",{"$f":"IF(ROW()>Листов,\"\",INDEX(Листы,ROW(A3)))","v":"Bulg"}]
[null,null,null,null,null,null,null,null,null,null,null,null,null,"",{"$f":"IF(ROW()>Листов,\"\",INDEX(Листы,ROW(A4)))","v":""}]
[null,null,null,null,null,null,null,null,null,null,null,null,null,"",{"$f":"IF(ROW()>Листов,\"\",INDEX(Листы,ROW(A5)))","v":""}]
[null,null,null,null,null,null,null,null,null,null,null,null,null,"",{"$f":"IF(ROW()>Листов,\"\",INDEX(Листы,ROW(A6)))","v":""}]
[null,null,null,null,null,null,null,null,null,null,null,null,null,"",{"$f":"IF(ROW()>Листов,\"\",INDEX(Листы,ROW(A7)))","v":""}]
[null,null,null,null,null,null,null,null,null,null,null,null,null,"",{"$f":"IF(ROW()>Листов,\"\",INDEX(Листы,ROW(A8)))","v":""}]
[null,null,null,null,null,null,null,null,null,null,null,null,null,"",{"$f":"IF(ROW()>Листов,\"\",INDEX(Листы,ROW(A9)))","v":""}]
[null,null,null,null,null,null,null,null,null,null,null,null,null,"",{"$f":"IF(ROW()>Листов,\"\",INDEX(Листы,ROW(A10)))","v":""}]
[null,null,null,null,null,null,null,null,null,null,null,null,null,"",{"$f":"IF(ROW()>Листов,\"\",INDEX(Листы,ROW(A11)))","v":""}]
[null,null,null,null,null,null,null,null,null,null,null,null,null,"",{"$f":"IF(ROW()>Листов,\"\",INDEX(Листы,ROW(A12)))","v":""}]
[null,null,null,null,null,null,null,null,null,null,null,null,null,"",{"$f":"IF(ROW()>Листов,\"\",INDEX(Листы,ROW(A13)))","v":""}]
[null,null,null,null,null,null,null,null,null,null,null,null,null,"",{"$f":"IF(ROW()>Листов,\"\",INDEX(Листы,ROW(A14)))","v":""}]
[null,null,null,null,null,null,null,null,null,null,null,null,null,"",{"$f":"IF(ROW()>Листов,\"\",INDEX(Листы,ROW(A15)))","v":""}]
[null,null,null,null,null,null,null,null,null,null,null,null,null,"",{"$f":"IF(ROW()>Листов,\"\",INDEX(Листы,ROW(A16)))","v":""}]
[null,null,null,null,null,null,null,null,null,null,null,null,null,"",{"$f":"IF(ROW()>Листов,\"\",INDEX(Листы,ROW(A17)))","v":""}]
[null,null,null,null,null,null,null,null,null,null,null,null,null,"",{"$f":"IF(ROW()>Листов,\"\",INDEX(Листы,ROW(A18)))","v":""}]
[null,null,null,null,null,null,null,null,null,null,null,null,null,"",{"$f":"IF(ROW()>Листов,\"\",INDEX(Листы,ROW(A19)))","v":""}]